bitfinex-derivatives/quotes_BTCF0:USTF0_20241015
["timestamp","ask_amount","ask_price","bid_price","bid_amount"]
[1729023621787,0.3628,66699.0,66687.0,0.26]
[1729023621986,0.074966,66694.0,66687.0,0.261]
[1729023622290,0.075966,66694.0,66687.0,0.263]
[1729023622678,0.001,66694.0,66691.0,0.26]
[1729023622874,0.001,66695.0,66692.0,0.3887]
[1729023623079,0.001,66694.0,66692.0,0.3887]
[1729023623284,0.435766,66693.0,66692.0,0.1923]
[1729023623787,0.695766,66693.0,66692.0,0.1923]
[1729023623996,0.074972,66688.0,66687.0,0.003]
[1729023624482,0.074972,66688.0,66687.0,0.001]
[1729023625084,0.26,66689.0,66685.0,0.1964]
[1729023625279,0.074974,66686.0,66685.0,0.1964]
[1729023626480,0.074974,66686.0,66685.0,0.1974]
[1729023626481,0.075974,66686.0,66685.0,0.1974]
[1729023627592,0.076974,66686.0,66685.0,0.1994]
[1729023628583,0.10462819,66686.0,66685.0,0.1994]
[1729023628778,0.02965419,66686.0,66685.0,0.1994]
[1729023630492,0.07497,66690.0,66685.0,0.1994]
[1729023630693,0.1024402,66690.0,66685.0,0.1994]
[1729023631576,0.074971,66689.0,66685.0,0.1984]
[1729023631781,0.074971,66689.0,66685.0,0.1994]
[1729023631982,0.002,66690.0,66685.0,0.1994]
[1729023632180,0.074973,66688.0,66685.0,0.1994]
[1729023632685,0.074973,66688.0,66685.0,0.1984]
[1729023632891,0.074973,66687.0,66685.0,0.1994]
[1729023633787,0.074973,66687.0,66685.0,0.1974]
[1729023634088,0.074973,66687.0,66685.0,0.1994]
[1729023634486,0.172,66689.0,66685.0,0.1994]
[1729023634487,0.074974,66686.0,66685.0,0.2014]
[1729023634796,0.074974,66686.0,66685.0,0.2024]
[1729023634992,0.074974,66686.0,66685.0,0.1994]
[1729023635303,0.074974,66686.0,66685.0,0.2024]
[1729023635790,0.076974,66686.0,66685.0,0.2024]
[1729023635991,0.002,66686.0,66685.0,0.638175]
[1729023636191,0.074964,66695.0,66687.0,0.074973]
[1729023636387,0.074965,66694.0,66692.0,0.17]
[1729023636582,0.244961,66698.0,66692.0,0.17]
[1729023636781,0.244961,66698.0,66689.0,0.07497]
[1729023636992,0.0374468,66697.0,66693.0,0.05957397]
[1729023637193,0.0374468,66697.0,66689.0,0.14943746]
[1729023637194,0.38843515,66699.0,66696.0,0.17]
[1729023637382,0.38843515,66699.0,66696.0,0.22957397]
[1729023637693,0.38843515,66699.0,66695.0,0.05957397]
[1729023637694,0.074961,66698.0,66695.0,0.05957397]
[1729023637889,0.38843515,66699.0,66697.0,0.05957397]
[1729023638394,0.46339515,66699.0,66698.0,0.05957397]
[1729023638596,0.46439515,66699.0,66696.0,0.003]
[1729023639189,0.074961,66698.0,66697.0,0.003]
[1729023640392,0.38943515,66699.0,66697.0,0.11380707]
[1729023640589,0.46539415,66699.0,66698.0,0.18547399]
[1729023640793,0.46439415,66699.0,66697.0,0.07866692]
[1729023640988,0.46539415,66699.0,66698.0,0.07466692]
[1729023641193,0.46539415,66699.0,66697.0,0.07866692]
[1729023641194,0.39043515,66699.0,66697.0,0.07866692]
[1729023641500,0.38943515,66699.0,66698.0,0.11087747]
[1729023641897,0.46439415,66699.0,66698.0,0.11087747]
[1729023642204,0.46439415,66699.0,66698.0,0.0777283]
[1729023642392,0.38943515,66699.0,66698.0,0.11397982]
[1729023642586,0.46439415,66699.0,66698.0,0.11397982]
[1729023643798,0.46439415,66699.0,66698.0,0.11697982]
[1729023644001,0.46439415,66699.0,66698.0,0.006]
[1729023644200,0.91419415,66699.0,66698.0,0.006]
[1729023644496,1.51319415,66699.0,66698.0,0.002]
[1729023644704,1.51319415,66699.0,66698.0,0.003]
[1729023645492,1.51319415,66699.0,66698.0,0.06287007]
[1729023646090,1.68319415,66699.0,66698.0,0.003]
[1729023646296,0.074971,66689.0,66679.0,0.08936095]
[1729023646598,0.5308,66680.0,66675.0,0.4054]
[1729023646901,0.5308,66680.0,66676.0,0.1118496]
[1729023646902,0.074984,66677.0,66676.0,0.1118496]
[1729023647091,0.3608,66680.0,66660.0,0.53156]
[1729023647092,0.074991,66671.0,66669.0,0.08936095]
[1729023647298,0.074991,66671.0,66670.0,0.11102932]
[1729023648194,0.001,66671.0,66670.0,0.11102932]
[1729023648500,0.074992,66670.0,66669.0,0.004]
[1729023648803,0.074992,66670.0,66669.0,0.11403568]
[1729023649002,0.074992,66670.0,66669.0,0.11406627]
[1729023649299,0.074992,66670.0,66669.0,0.003]
[1729023649897,0.074992,66670.0,66662.0,0.17]
[1729023649898,0.0274134,66671.0,66662.0,0.17]
[1729023650094,0.4642044,66671.0,66670.0,0.002]
[1729023650797,0.4642044,66671.0,66662.0,0.17]
[1729023650798,0.074995,66668.0,66662.0,0.17]
[1729023650997,0.074996,66667.0,66663.0,0.11101974]
[1729023651198,0.002,66670.0,66665.0,0.17]
[1729023651403,0.002,66670.0,66669.0,0.17]
[1729023651606,0.0264134,66671.0,66669.0,0.17]
[1729023651607,0.0274134,66671.0,66669.0,0.17]
[1729023651802,0.0284134,66671.0,66670.0,0.002]
[1729023652309,0.1024044,66671.0,66670.0,0.002]
[1729023653104,0.1014044,66671.0,66668.0,0.17]
[1729023653301,0.001,66670.0,66669.0,0.002]
[1729023654001,0.1034044,66671.0,66670.0,0.002]
[1729023654201,0.0284134,66671.0,66670.0,0.002]
[1729023654411,0.0274134,66671.0,66670.0,0.002]
[1729023654595,0.3608,66674.0,66671.0,0.07499]
[1729023654898,0.17,66689.0,66676.0,0.17]
[1729023654899,0.074981,66680.0,66676.0,0.17]
[1729023655102,0.074981,66680.0,66679.0,0.3608]
[1729023655299,0.074975,66685.0,66679.0,0.3608]
[1729023655502,0.074975,66685.0,66684.0,0.17]
[1729023655812,0.074968,66692.0,66684.0,0.17]
[1729023655996,0.074964,66695.0,66691.0,0.5308]
[1729023656197,0.59028,66702.0,66691.0,0.5308]
[1729023656198,0.074962,66697.0,66691.0,0.5308]
[1729023656808,0.02980291,66694.0,66691.0,0.5308]
[1729023657311,0.04180291,66694.0,66691.0,0.5308]
[1729023657905,0.04180291,66694.0,66692.0,0.1985]
[1729023658507,0.00112001,66702.0,66693.0,0.98064]
[1729023658706,0.07494,66716.0,66707.0,0.07495]
[1729023658908,0.07494,66716.0,66701.0,0.5308]
[1729023658909,0.074937,66719.0,66718.0,0.17]
[1729023659401,0.074937,66719.0,66715.0,0.17]
[1729023659594,0.39537502,66725.0,66718.0,0.17]
[1729023659595,0.074933,66723.0,66718.0,0.17]
[1729023659802,0.074933,66723.0,66722.0,0.17]
[1729023660206,0.39537502,66725.0,66722.0,0.17]
[1729023660407,0.02723376,66725.0,66724.0,0.3608]
[1729023660700,0.02723376,66725.0,66716.0,0.07494]
[1729023660701,0.074937,66719.0,66713.0,0.04482409]
[1729023660900,0.074944,66713.0,66711.0,0.04482409]
[1729023661209,0.074945,66712.0,66710.0,0.04482409]
[1729023661408,0.074945,66712.0,66709.0,0.04482409]
[1729023661719,0.17,66714.0,66709.0,0.1909]
[1729023662100,0.004,66713.0,66709.0,0.1909]
[1729023662298,0.004,66713.0,66709.0,0.23572409]
[1729023662516,0.004,66713.0,66709.0,0.1909]
[1729023663012,0.074945,66712.0,66709.0,0.1909]
[1729023663803,0.005,66713.0,66712.0,0.074945]
[1729023664011,0.00957732,66726.0,66712.0,0.3608]
[1729023664213,0.00224872,66726.0,66725.0,0.3608]
[1729023664711,0.00224872,66726.0,66725.0,0.56]
[1729023665009,0.02958531,66726.0,66725.0,0.56]
[1729023665214,0.07717772,66726.0,66725.0,0.56]
[1729023665402,0.33717772,66726.0,66725.0,0.56]
[1729023665601,1.38677772,66726.0,66725.0,0.3608]
[1729023666512,0.074943,66714.0,66713.0,0.1992]
[1729023666706,0.334943,66714.0,66713.0,0.1992]
[1729023667109,0.44662909,66714.0,66713.0,0.1992]
[1729023667614,0.074944,66713.0,66712.0,0.3608]
[1729023667818,0.074957,66701.0,66700.0,0.3608]
[1729023668011,0.15768481,66701.0,66700.0,0.3608]
[1729023668208,0.23850916,66701.0,66700.0,0.3608]
[1729023668413,0.15769211,66701.0,66700.0,0.3608]
[1729023668708,0.18665545,66701.0,66700.0,0.3608]
[1729023668907,0.35021055,66701.0,66700.0,0.3608]
[1729023669107,0.35021055,66701.0,66700.0,0.3618]
[1729023669409,0.35021055,66701.0,66700.0,0.3628]
[1729023669713,0.18965545,66701.0,66700.0,0.3618]
[1729023669912,0.18966512,66701.0,66700.0,0.3618]
[1729023670509,0.18966512,66701.0,66700.0,0.3608]
[1729023670710,0.22071051,66701.0,66700.0,0.3608]
[1729023671306,0.36938681,66701.0,66700.0,0.3608]
[1729023671916,0.22071051,66701.0,66700.0,0.3608]
[1729023672128,0.21871051,66701.0,66700.0,0.3608]
[1729023672417,0.22271051,66701.0,66700.0,0.3608]
[1729023672615,0.21771051,66701.0,66700.0,0.3608]
[1729023672813,0.074974,66686.0,66682.0,0.3608]
[1729023673025,0.73219906,66686.0,66667.0,0.01025]
[1729023673209,0.3608,66669.0,66667.0,0.01025]
[1729023673408,0.06568384,66668.0,66667.0,0.01025]
[1729023673620,0.18672034,66668.0,66667.0,0.01025]
[1729023673927,0.32045072,66668.0,66667.0,0.01025]
[1729023674111,0.074994,66668.0,66667.0,0.01025]
[1729023674725,0.074998,66665.0,66664.0,0.3744]
[1729023675814,0.075998,66665.0,66664.0,0.3794]
[1729023676009,0.001,66665.0,66664.0,0.3934]
[1729023676214,0.3608,66669.0,66664.0,0.3934]
[1729023676725,0.3608,66669.0,66664.0,0.6534]
[1729023676913,0.074998,66665.0,66664.0,0.6534]
[1729023677217,0.074998,66665.0,66664.0,0.3934]
[1729023677815,0.074998,66665.0,66664.0,0.3884]
[1729023678409,0.075998,66665.0,66664.0,0.3884]
[1729023679423,0.10350956,66665.0,66664.0,0.3884]
[1729023680522,0.074991,66672.0,66664.0,0.824199]
[1729023680710,0.074991,66672.0,66671.0,0.26]
[1729023681711,0.001,66672.0,66671.0,0.26]
[1729023682119,0.03946075,66675.0,66671.0,0.263]
[1729023682328,0.07499,66672.0,66671.0,0.263]
[1729023682623,0.001,66672.0,66671.0,0.272]
[1729023683927,0.001,66672.0,66671.0,0.012]
[1729023683928,0.07599,66672.0,66671.0,0.012]
[1729023688529,0.001,66672.0,66671.0,0.012]
[1729023689019,0.07599,66672.0,66671.0,0.012]
[1729023691929,0.07499,66672.0,66671.0,0.003]
[1729023692231,0.07499,66672.0,66671.0,0.005]
[1729023693634,0.07499,66672.0,66671.0,0.002]
[1729023693928,0.46299406,66676.0,66671.0,0.005]
[1729023694131,0.38800906,66676.0,66675.0,0.26]
[1729023694530,0.02720906,66676.0,66675.0,0.26]
[1729023694729,0.074982,66679.0,66675.0,0.26]
[1729023694935,0.074982,66679.0,66676.0,0.2049]
[1729023695132,0.074978,66683.0,66677.0,0.3608]
[1729023695325,0.36188,66692.0,66681.0,0.334979]
[1729023695326,0.435771,66689.0,66681.0,0.334979]
[1729023695640,0.074973,66687.0,66686.0,0.26]
[1729023695835,0.074973,66687.0,66682.0,0.1995]
[1729023696524,0.38250499,66689.0,66683.0,0.435777]
[1729023696830,0.02270499,66689.0,66686.0,0.26]
[1729023697227,0.00225003,66693.0,66688.0,0.074972]
[1729023697432,0.02145651,66693.0,66692.0,0.6208]
[1729023697631,0.074966,66693.0,66687.0,0.26]
[1729023697934,0.074959,66700.0,66687.0,0.26]
[1729023698133,0.074966,66693.0,66683.0,0.3638]
[1729023698327,0.074971,66689.0,66683.0,0.3638]
[1729023698527,0.074974,66687.0,66683.0,0.3608]
[1729023699827,0.00745916,66692.0,66683.0,0.3608]
[1729023700031,0.00745916,66692.0,66683.0,0.3638]
[1729023700333,0.074976,66684.0,66683.0,0.3668]
[1729023700732,0.074976,66684.0,66683.0,0.3638]
[1729023701036,0.074976,66684.0,66683.0,0.3668]
[1729023702242,0.074976,66684.0,66683.0,0.3638]
[1729023702536,0.074976,66684.0,66683.0,0.3668]
[1729023702938,0.3608,66694.0,66683.0,0.6268]
[1729023703126,0.074973,66688.0,66687.0,0.074973]
[1729023703327,0.074972,66688.0,66687.0,0.26]
[1729023704627,0.1866878,66688.0,66687.0,0.26]
[1729023704826,0.32199782,66688.0,66687.0,0.26]
[1729023705335,0.074975,66685.0,66684.0,0.3608]
[1729023705638,0.1406628,66685.0,66684.0,0.3608]
[1729023705831,0.18669354,66685.0,66684.0,0.3608]
[1729023706337,0.074987,66674.0,66670.0,0.3608]
[1729023706635,0.18671362,66674.0,66661.0,0.5606]
[1729023706830,0.20949367,66674.0,66661.0,0.7553]
[1729023707023,0.32122029,66674.0,66661.0,0.7553]
[1729023707228,0.18671362,66674.0,66661.0,0.7553]
[1729023708132,0.18771362,66674.0,66673.0,0.00624962]
[1729023708332,0.78771362,66674.0,66673.0,0.00624962]
[1729023708633,0.81001385,66674.0,66673.0,0.00624962]
[1729023709131,1.38877409,66674.0,66673.0,0.00524962]
[1729023709333,1.2246174,66674.0,66673.0,0.00524962]
[1729023709634,0.57081385,66674.0,66673.0,0.00524962]
[1729023709837,1.3212435,66674.0,66673.0,0.00724962]
[1729023710538,0.075001,66662.0,66661.0,0.7553]
[1729023711120,0.18672762,66662.0,66661.0,0.7553]
[1729023711533,0.075001,66662.0,66661.0,0.7553]
[1729023711828,0.077001,66662.0,66661.0,0.7713]
[1729023712033,0.077001,66662.0,66661.0,0.5715]
[1729023712537,0.076001,66662.0,66661.0,0.5575]
[1729023712739,0.077001,66662.0,66661.0,0.5665]
[1729023713437,0.09884642,66662.0,66661.0,0.5665]
[1729023713623,0.09884642,66662.0,66661.0,0.2037]
[1729023717852,0.002,66662.0,66661.0,0.2037]
[1729023718038,0.02151757,66664.0,66661.0,1.25374]
[1729023718338,0.435777,66683.0,66666.0,0.26]
[1729023718339,0.001,66683.0,66666.0,0.26]
[1729023718538,0.3684018,66693.0,66685.0,0.074975]
[1729023718739,0.38271213,66693.0,66687.0,0.26]
[1729023718935,0.64271213,66693.0,66686.0,0.2014]
[1729023719136,0.07497,66690.0,66686.0,0.2014]
[1729023719341,0.074971,66689.0,66686.0,0.2014]
[1729023719536,0.10394039,66688.0,66686.0,0.2014]
[1729023719736,0.02896839,66687.0,66686.0,0.2014]
[1729023720043,0.10394139,66687.0,66686.0,0.2014]
[1729023720434,0.10394139,66687.0,66680.0,0.3608]
[1729023720627,0.02896839,66686.0,66680.0,0.3608]
[1729023721343,0.02896839,66686.0,66681.0,0.1944]
[1729023721744,0.02896839,66686.0,66682.0,0.1942]
[1729023722145,0.10394239,66686.0,66682.0,0.1942]
[1729023722341,0.02896845,66685.0,66682.0,0.1942]
[1729023722542,0.02896845,66684.0,66682.0,0.1942]
[1729023722737,0.074974,66686.0,66682.0,0.1942]
[1729023723039,0.074977,66683.0,66682.0,0.1942]
[1729023723433,0.074977,66683.0,66682.0,0.1992]
[1729023723843,0.38292864,66693.0,66682.0,0.4592]
[1729023724146,0.38292864,66693.0,66686.0,0.3608]
[1729023724147,0.02896836,66692.0,66686.0,0.3608]
[1729023724445,0.074967,66692.0,66691.0,0.26]
[1729023724648,0.10393359,66692.0,66691.0,0.26]
[1729023725532,0.02896659,66692.0,66691.0,0.26]
[1729023726744,0.074969,66691.0,66687.0,0.26]
[1729023727846,0.07497,66690.0,66687.0,0.26]
[1729023728150,0.074971,66689.0,66687.0,0.26]
[1729023728335,0.074972,66688.0,66687.0,0.26]
[1729023728648,0.074972,66688.0,66687.0,0.261]
[1729023729238,0.074972,66688.0,66687.0,0.001]
[1729023729635,0.26,66691.0,66686.0,0.3608]
[1729023729636,0.074973,66687.0,66686.0,0.3608]
[1729023729940,0.074977,66683.0,66682.0,0.1942]
[1729023730144,0.074978,66682.0,66681.0,0.1944]
[1729023732149,0.079978,66682.0,66681.0,0.1944]
[1729023732650,0.10326979,66682.0,66681.0,0.1954]
[1729023732944,0.10926979,66682.0,66681.0,0.1954]
[1729023733540,0.36926979,66682.0,66681.0,0.001]
[1729023733744,0.36926979,66682.0,66668.0,0.01025]
[1729023733745,0.074987,66674.0,66673.0,0.00224961]
[1729023735242,0.3608,66675.0,66669.0,0.4011]
[1729023735446,0.074987,66674.0,66673.0,0.005]
[1729023736246,0.074987,66674.0,66673.0,0.003]
[1729023736553,0.074991,66671.0,66669.0,0.4041]
[1729023736740,0.38292647,66675.0,66669.0,0.4041]
[1729023736940,0.074992,66670.0,66669.0,0.4041]
[1729023737145,0.334992,66670.0,66669.0,0.1993]
[1729023738050,0.334992,66670.0,66669.0,0.1973]
[1729023738251,0.334992,66670.0,66669.0,0.1963]
[1729023738850,0.334992,66670.0,66669.0,0.1983]
[1729023739252,0.334992,66670.0,66669.0,0.003]
[1729023741156,0.075001,66662.0,66654.0,0.01025]
[1729023741345,0.075002,66661.0,66654.0,0.01025]
[1729023741655,0.075006,66658.0,66654.0,0.01025]
[1729023742251,0.0073694,66659.0,66654.0,0.01025]
[1729023742550,0.075009,66655.0,66654.0,0.02425]
[1729023743050,0.075009,66655.0,66654.0,0.03225]
[1729023744248,0.075009,66655.0,66654.0,0.29225]
[1729023744453,0.075009,66655.0,66654.0,0.28825]
[1729023745048,0.076009,66655.0,66654.0,0.28825]
[1729023745453,0.077009,66655.0,66654.0,0.28825]
[1729023747442,0.077009,66655.0,66654.0,0.28925]
[1729023748157,0.074999,66664.0,66659.0,0.075004]
[1729023748453,0.074999,66664.0,66663.0,0.6208]
[1729023748454,0.07500001,66664.0,66663.0,0.6208]
[1729023748649,0.00084,66682.0,66663.0,0.8808]
[1729023748856,0.074982,66679.0,66676.0,0.074984]
[1729023749060,0.00225038,66684.0,66682.0,0.074978]
[1729023749245,0.00225038,66684.0,66683.0,0.4415]
[1729023749750,0.074973,66687.0,66683.0,0.4415]
[1729023749751,0.06142918,66687.0,66683.0,0.4415]
[1729023750064,0.00224986,66698.0,66686.0,0.21474181]
[1729023750364,0.00224986,66698.0,66697.0,0.5308]
[1729023750656,0.36164,66708.0,66697.0,0.605762]
[1729023750959,0.074945,66712.0,66703.0,0.3608]
[1729023751151,0.3608,66715.0,66703.0,0.3608]
[1729023751152,0.3608,66715.0,66707.0,0.17]
[1729023751348,0.074946,66711.0,66707.0,0.17]
[1729023751848,0.074946,66711.0,66703.0,0.3608]
[1729023751849,0.074946,66711.0,66704.0,0.26]
[1729023752546,0.081946,66711.0,66707.0,0.001]
[1729023752955,0.007,66711.0,66707.0,0.001]
[1729023753150,0.074943,66714.0,66704.0,0.26]
[1729023753351,0.007,66711.0,66704.0,0.261]
[1729023753664,0.015,66711.0,66707.0,0.001]
[1729023753954,0.015,66711.0,66709.0,0.26]
[1729023754345,0.008,66711.0,66710.0,0.3608]
[1729023754548,0.074936,66720.0,66710.0,0.3608]
[1729023754549,0.02191006,66720.0,66710.0,1.93052]
[1729023754755,0.00224913,66722.0,66719.0,0.6208]
[1729023755347,0.3608,66745.0,66720.0,0.44964]
[1729023755549,0.38239831,66737.0,66730.0,0.26]
[1729023755750,0.074927,66728.0,66725.0,0.3608]
[1729023756557,0.26,66734.0,66725.0,0.3608]
[1729023756861,0.074928,66727.0,66725.0,0.3608]
[1729023757251,0.074928,66727.0,66725.0,0.3618]
[1729023757857,0.26,66734.0,66725.0,0.3678]
[1729023758061,0.074923,66732.0,66730.0,0.26]
[1729023758256,0.38239831,66737.0,66730.0,0.26]
[1729023759556,0.38239831,66737.0,66726.0,0.4273]
[1729023759557,0.001,66727.0,66726.0,0.4273]
[1729023760150,0.074919,66735.0,66730.0,0.001]
[1729023760350,0.38339831,66737.0,66731.0,0.26]
[1729023760756,0.45731531,66737.0,66731.0,0.26]
[1729023760961,0.45731531,66737.0,66736.0,0.26]
[1729023761660,0.074919,66736.0,66731.0,0.6208]
[1729023762161,0.074919,66736.0,66731.0,0.6228]
[1729023762663,0.074922,66732.0,66731.0,0.3618]
[1729023762858,0.074922,66732.0,66731.0,0.3628]
[1729023763556,0.074918,66736.0,66731.0,0.3618]
[1729023763764,0.074919,66735.0,66731.0,0.3618]
[1729023764152,0.001,66732.0,66731.0,0.3628]
[1729023764752,0.001,66732.0,66731.0,0.262]
[1729023765164,0.001,66736.0,66731.0,0.262]
[1729023765363,0.02894792,66735.0,66731.0,0.002]
[1729023765555,0.001,66736.0,66735.0,0.26]
[1729023766768,0.38239831,66737.0,66735.0,0.26]
[1729023767354,0.001,66736.0,66735.0,0.261]
[1729023767655,0.075918,66736.0,66735.0,0.262]
[1729023767856,0.075918,66736.0,66735.0,0.002]
[1729023768062,0.074918,66736.0,66735.0,0.002]
[1729023768263,0.10386598,66736.0,66735.0,0.001]
[1729023768458,0.10386598,66736.0,66735.0,0.002]
[1729023768864,0.10386535,66736.0,66735.0,0.002]
[1729023769067,0.074918,66736.0,66735.0,0.002]
[1729023769265,0.10386623,66736.0,66735.0,0.002]
[1729023769769,0.10486623,66736.0,66735.0,0.002]
[1729023770959,0.46566671,66736.0,66735.0,0.002]
[1729023771764,0.436718,66736.0,66735.0,0.002]
[1729023774169,0.074925,66730.0,66711.0,0.27025]
[1729023774357,0.074939,66717.0,66714.0,0.1759]
[1729023775256,0.074939,66717.0,66715.0,0.3608]
[1729023775455,0.074939,66717.0,66716.0,0.00524821]
[1729023776071,0.074939,66717.0,66716.0,0.00224821]
[1729023776374,0.45782899,66717.0,66702.0,0.3608]
[1729023776678,0.074955,66703.0,66702.0,0.3608]
[1729023777469,0.074955,66703.0,66702.0,0.3748]
[1729023778071,0.074955,66703.0,66702.0,0.3888]
[1729023778663,0.074955,66703.0,66702.0,0.3748]
[1729023778863,0.074955,66703.0,66702.0,0.3778]
[1729023779063,0.074952,66706.0,66702.0,0.6378]
[1729023779372,0.074934,66722.0,66702.0,0.68237307]
[1729023779373,0.074953,66705.0,66702.0,0.68237307]
[1729023779670,0.074943,66714.0,66704.0,0.26]
[1729023780262,0.074946,66711.0,66710.0,0.26]
[1729023780770,0.074952,66706.0,66705.0,0.26]
[1729023781364,0.074955,66703.0,66702.0,0.3618]
[1729023781564,0.074955,66703.0,66702.0,0.001]
[1729023782066,0.074963,66696.0,66695.0,0.00224889]
[1729023784473,0.078963,66696.0,66695.0,0.00224889]
[1729023784673,0.080963,66696.0,66695.0,0.00224889]
[1729023785076,0.006,66696.0,66695.0,0.26224889]
[1729023785381,0.007,66696.0,66695.0,0.26224889]
[1729023786173,0.081963,66696.0,66695.0,0.00224889]
[1729023787173,0.074964,66695.0,66694.0,0.04457307]
[1729023787568,0.28212226,66697.0,66692.0,0.05482307]
[1729023787762,0.695766,66693.0,66692.0,0.01025]
[1729023788364,0.435766,66693.0,66692.0,0.01025]
[1729023790473,0.439766,66693.0,66692.0,0.01025]
[1729023790973,0.439766,66693.0,66688.0,0.04457307]
[1729023790974,0.074971,66689.0,66688.0,0.04457307]
[1729023791174,0.074974,66686.0,66685.0,0.04457307]
[1729023791476,0.074975,66685.0,66684.0,0.04457307]
[1729023791674,0.074975,66685.0,66678.0,0.3608]
[1729023791675,0.074976,66684.0,66683.0,0.04457307]
[1729023792671,0.074977,66683.0,66682.0,0.04457307]
[1729023793870,0.074971,66689.0,66678.0,0.6216]
[1729023794183,0.695766,66693.0,66678.0,0.6216]
[1729023794184,0.074977,66683.0,66682.0,0.007]
[1729023794878,0.074977,66683.0,66682.0,0.014]
[1729023795975,0.074977,66683.0,66682.0,0.007]
[1729023797083,0.074977,66683.0,66682.0,0.014]
[1729023800580,0.09667252,66683.0,66682.0,0.014]
[1729023800780,0.09667252,66683.0,66682.0,0.274]
[1729023800983,0.3608,66692.0,66682.0,0.274]
[1729023801193,0.074968,66691.0,66690.0,0.26]
[1729023801780,0.34531482,66692.0,66690.0,0.31963685]
[1729023801977,0.34531482,66692.0,66690.0,0.05963685]
[1729023801978,0.074968,66691.0,66690.0,0.05963685]
[1729023802384,0.074968,66691.0,66689.0,0.04472749]
[1729023802587,0.074972,66688.0,66687.0,0.05963685]
[1729023802800,0.334972,66688.0,66685.0,0.05967607]
[1729023802980,0.074975,66685.0,66684.0,0.05967607]
[1729023803289,0.3608,66686.0,66684.0,0.04476175]
[1729023803479,0.074977,66683.0,66682.0,0.05176175]
[1729023803682,0.334977,66683.0,66680.0,0.04476175]
[1729023804095,0.07498,66681.0,66680.0,0.04476175]
[1729023804482,0.074983,66678.0,66677.0,0.05967607]
[1729023804681,0.435783,66678.0,66677.0,0.05967607]
[1729023805586,0.074987,66675.0,66672.0,0.07685544]
[1729023805782,0.26,66676.0,66672.0,0.07685544]
[1729023805983,0.074989,66673.0,66672.0,0.00224964]
[1729023806990,1.124949,66673.0,66672.0,0.05979024]
[1729023807195,1.30996,66673.0,66671.0,0.04484365]
[1729023807384,0.074991,66671.0,66670.0,0.0448483]
[1729023807687,0.074992,66670.0,66669.0,0.0448483]
[1729023807907,0.074999,66664.0,66663.0,0.0448483]
[1729023808085,0.70321725,66664.0,66663.0,0.0448483]
[1729023808285,0.075,66663.0,66662.0,2.3e-07]
[1729023808586,0.075013,66652.0,66643.0,0.0746058]
[1729023808786,0.075017,66648.0,66647.0,0.26]
[1729023809887,0.075017,66648.0,66647.0,0.273]
[1729023810595,0.075017,66648.0,66647.0,0.275]
[1729023810796,0.075017,66648.0,66647.0,0.015]
[1729023811389,0.075017,66648.0,66647.0,0.275]
[1729023811999,0.075017,66648.0,66647.0,0.015]
[1729023813088,0.09263885,66648.0,66647.0,0.015]
[1729023816800,0.075008,66656.0,66647.0,0.015]
[1729023816995,0.3608,66657.0,66654.0,0.26]
[1729023817196,0.075009,66655.0,66654.0,0.26]
[1729023817496,0.37800924,66657.0,66654.0,0.26]
[1729023817697,0.01720924,66657.0,66654.0,0.26]
[1729023817901,0.3608,66661.0,66654.0,0.26]
[1729023818105,0.075007,66657.0,66654.0,0.26]
[1729023818296,0.435803,66661.0,66654.0,0.26]
[1729023818496,0.075005,66659.0,66654.0,0.26]
[1729023818800,0.075006,66658.0,66654.0,0.26]
[1729023819002,0.075007,66657.0,66654.0,0.26]
[1729023819796,0.075007,66657.0,66654.0,0.261]
[1729023820500,0.4533141,66661.0,66654.0,0.26]
[1729023820802,0.0175111,66661.0,66658.0,0.26]
[1729023821002,0.00225111,66668.0,66660.0,0.4354058]
[1729023821210,0.00225111,66668.0,66667.0,0.3608]
[1729023821498,0.074984,66678.0,66675.0,0.26]
[1729023821701,0.074985,66676.0,66675.0,0.26]
[1729023822807,0.078985,66676.0,66675.0,0.26]
[1729023823104,0.081985,66676.0,66675.0,0.26]
[1729023823805,0.081985,66676.0,66672.0,0.07450134]
[1729023824007,0.081985,66676.0,66671.0,0.26]
[1729023824204,0.074987,66675.0,66672.0,0.1853]
[1729023824705,0.074987,66675.0,66673.0,0.1768]
[1729023825096,0.004,66676.0,66673.0,0.1768]
[1729023825408,0.26,66674.0,66663.0,0.07450134]
[1729023825596,0.26,66667.0,66661.0,0.07450134]
[1729023825797,0.075002,66661.0,66660.0,0.61210134]
[1729023826106,0.075002,66661.0,66660.0,0.5376]
[1729023826306,0.075002,66661.0,66660.0,0.1768]
[1729023827105,0.075003,66660.0,66659.0,0.3608]
[1729023827307,0.075008,66656.0,66655.0,0.1853]
[1729023827506,0.335008,66656.0,66655.0,0.1853]
[1729023829102,0.076008,66656.0,66655.0,0.1853]
[1729023830104,0.09386995,66656.0,66655.0,0.1853]
[1729023831811,0.075012,66652.0,66651.0,0.24960134]
[1729023832005,0.075012,66652.0,66651.0,0.1751]
[1729023832814,0.075012,66652.0,66651.0,0.1791]
[1729023833321,0.075012,66652.0,66651.0,0.1821]
[1729023834008,0.075012,66652.0,66651.0,0.007]
[1729023834410,0.075012,66652.0,66651.0,0.003]
[1729023834910,0.335012,66652.0,66651.0,0.003]
[1729023835613,0.075019,66646.0,66645.0,0.01025]
[1729023836817,0.075019,66646.0,66645.0,0.01525]
[1729023837609,0.075019,66646.0,66645.0,0.02125]
[1729023838017,0.335019,66646.0,66645.0,0.02125]
[1729023838206,0.34267993,66646.0,66645.0,0.02125]